Workbook

Sheet Manufacturing Imperfections
B2: Control Chart for Printing Books
B4: Plant Name: | C4: [Name] | H4: Notes:
B5: Report Date: | C5: [Date]
B6: QC Tech: | C6: [Name]
B7: Dept: | C7: [Department]
B8: Equipment ID: | C8: [ID]
B9: Start date: | C9: 2014-01-01
B10: End date: | C10: 2014-01-31
B11: Desired level | C11: 1
B13: Average Daily Imperfections with Control Limits
B30: Data Entry
C32: Number of Imperfections
B33: Date | C33: Sample 1 | D33: Sample 2 | E33: Sample 3 | F33: Sample 4 | G33: Sample 5 | H33: Mean | I33: Sample Mean | J33: Standard Deviation | K33: Sample Standard Deviation | L33: Lower Control Limit | M33: Upper Control Limit
B34: 2014-01-01 | C34: 0 | D34: 3 | E34: 2 | F34: 5 | G34: 4 | H34: =IFERROR(AVERAGE(tblData[[#This Row],[Sample 1]:[Sample 5]]),"") -> 2.80 | I34: =AVERAGE(tblData[Mean]) -> 2.50 | J34: =IFERROR(STDEV(tblData[[#This Row],[Sample 1]:[Sample 5]]),"") -> 1.92 | K34: =AVERAGE(tblData[Standard Deviation]) -> 1.58 | L34: =tblData[[#This Row],[Sample Mean]]-(DesiredLevel*tblData[[#This Row],[Sample Standard Deviation]]) -> 0.93 | M34: =tblData[[#This Row],[Sample Mean]]+(DesiredLevel*tblData[[#This Row],[Sample Standard Deviation]]) -> 4.08
B35: 2014-01-02 | C35: 4 | D35: 3 | E35: 1 | F35: 3 | G35: 1 | H35: =IFERROR(AVERAGE(tblData[[#This Row],[Sample 1]:[Sample 5]]),"") -> 2.40 | I35: =AVERAGE(tblData[Mean]) -> 2.50 | J35: =IFERROR(STDEV(tblData[[#This Row],[Sample 1]:[Sample 5]]),"") -> 1.34 | K35: =AVERAGE(tblData[Standard Deviation]) -> 1.58 | L35: =tblData[[#This Row],[Sample Mean]]-(DesiredLevel*tblData[[#This Row],[Sample Standard Deviation]]) -> 0.93 | M35: =tblData[[#This Row],[Sample Mean]]+(DesiredLevel*tblData[[#This Row],[Sample Standard Deviation]]) -> 4.08
B36: 2014-01-03 | C36: 3 | D36: 4 | E36: 2 | F36: 3 | G36: 0 | H36: =IFERROR(AVERAGE(tblData[[#This Row],[Sample 1]:[Sample 5]]),"") -> 2.40 | I36: =AVERAGE(tblData[Mean]) -> 2.50 | J36: =IFERROR(STDEV(tblData[[#This Row],[Sample 1]:[Sample 5]]),"") -> 1.52 | K36: =AVERAGE(tblData[Standard Deviation]) -> 1.58 | L36: =tblData[[#This Row],[Sample Mean]]-(DesiredLevel*tblData[[#This Row],[Sample Standard Deviation]]) -> 0.93 | M36: =tblData[[#This Row],[Sample Mean]]+(DesiredLevel*tblData[[#This Row],[Sample Standard Deviation]]) -> 4.08
B37: 2014-01-04 | C37: 5 | D37: 5 | E37: 4 | F37: 2 | G37: 5 | H37: =IFERROR(AVERAGE(tblData[[#This Row],[Sample 1]:[Sample 5]]),"") -> 4.20 | I37: =AVERAGE(tblData[Mean]) -> 2.50 | J37: =IFERROR(STDEV(tblData[[#This Row],[Sample 1]:[Sample 5]]),"") -> 1.30 | K37: =AVERAGE(tblData[Standard Deviation]) -> 1.58 | L37: =tblData[[#This Row],[Sample Mean]]-(DesiredLevel*tblData[[#This Row],[Sample Standard Deviation]]) -> 0.93 | M37: =tblData[[#This Row],[Sample Mean]]+(DesiredLevel*tblData[[#This Row],[Sample Standard Deviation]]) -> 4.08
B38: 2014-01-05 | C38: 4 | D38: 0 | E38: 2 | F38: 1 | G38: 2 | H38: =IFERROR(AVERAGE(tblData[[#This Row],[Sample 1]:[Sample 5]]),"") -> 1.80 | I38: =AVERAGE(tblData[Mean]) -> 2.50 | J38: =IFERROR(STDEV(tblData[[#This Row],[Sample 1]:[Sample 5]]),"") -> 1.48 | K38: =AVERAGE(tblData[Standard Deviation]) -> 1.58 | L38: =tblData[[#This Row],[Sample Mean]]-(DesiredLevel*tblData[[#This Row],[Sample Standard Deviation]]) -> 0.93 | M38: =tblData[[#This Row],[Sample Mean]]+(DesiredLevel*tblData[[#This Row],[Sample Standard Deviation]]) -> 4.08
B39: 2014-01-06 | C39: 4 | D39: 3 | E39: 4 | F39: 0 | G39: 3 | H39: =IFERROR(AVERAGE(tblData[[#This Row],[Sample 1]:[Sample 5]]),"") -> 2.80 | I39: =AVERAGE(tblData[Mean]) -> 2.50 | J39: =IFERROR(STDEV(tblData[[#This Row],[Sample 1]:[Sample 5]]),"") -> 1.64 | K39: =AVERAGE(tblData[Standard Deviation]) -> 1.58 | L39: =tblData[[#This Row],[Sample Mean]]-(DesiredLevel*tblData[[#This Row],[Sample Standard Deviation]]) -> 0.93 | M39: =tblData[[#This Row],[Sample Mean]]+(DesiredLevel*tblData[[#This Row],[Sample Standard Deviation]]) -> 4.08
B40: 2014-01-07 | C40: 3 | D40: 5 | E40: 4 | F40: 4 | G40: 3 | H40: =IFERROR(AVERAGE(tblData[[#This Row],[Sample 1]:[Sample 5]]),"") -> 3.80 | I40: =AVERAGE(tblData[Mean]) -> 2.50 | J40: =IFERROR(STDEV(tblData[[#This Row],[Sample 1]:[Sample 5]]),"") -> 0.84 | K40: =AVERAGE(tblData[Standard Deviation]) -> 1.58 | L40: =tblData[[#This Row],[Sample Mean]]-(DesiredLevel*tblData[[#This Row],[Sample Standard Deviation]]) -> 0.93 | M40: =tblData[[#This Row],[Sample Mean]]+(DesiredLevel*tblData[[#This Row],[Sample Standard Deviation]]) -> 4.08
B41: 2014-01-10 | C41: 3 | D41: 1 | E41: 3 | F41: 5 | G41: 5 | H41: =IFERROR(AVERAGE(tblData[[#This Row],[Sample 1]:[Sample 5]]),"") -> 3.40 | I41: =AVERAGE(tblData[Mean]) -> 2.50 | J41: =IFERROR(STDEV(tblData[[#This Row],[Sample 1]:[Sample 5]]),"") -> 1.67 | K41: =AVERAGE(tblData[Standard Deviation]) -> 1.58 | L41: =tblData[[#This Row],[Sample Mean]]-(DesiredLevel*tblData[[#This Row],[Sample Standard Deviation]]) -> 0.93 | M41: =tblData[[#This Row],[Sample Mean]]+(DesiredLevel*tblData[[#This Row],[Sample Standard Deviation]]) -> 4.08
B42: 2014-01-11 | C42: 4 | D42: 3 | E42: 1 | F42: 4 | G42: 4 | H42: =IFERROR(AVERAGE(tblData[[#This Row],[Sample 1]:[Sample 5]]),"") -> 3.20 | I42: =AVERAGE(tblData[Mean]) -> 2.50 | J42: =IFERROR(STDEV(tblData[[#This Row],[Sample 1]:[Sample 5]]),"") -> 1.30 | K42: =AVERAGE(tblData[Standard Deviation]) -> 1.58 | L42: =tblData[[#This Row],[Sample Mean]]-(DesiredLevel*tblData[[#This Row],[Sample Standard Deviation]]) -> 0.93 | M42: =tblData[[#This Row],[Sample Mean]]+(DesiredLevel*tblData[[#This Row],[Sample Standard Deviation]]) -> 4.08
B43: 2014-01-12 | C43: 0 | D43: 4 | E43: 4 | F43: 3 | G43: 5 | H43: =IFERROR(AVERAGE(tblData[[#This Row],[Sample 1]:[Sample 5]]),"") -> 3.20 | I43: =AVERAGE(tblData[Mean]) -> 2.50 | J43: =IFERROR(STDEV(tblData[[#This Row],[Sample 1]:[Sample 5]]),"") -> 1.92 | K43: =AVERAGE(tblData[Standard Deviation]) -> 1.58 | L43: =tblData[[#This Row],[Sample Mean]]-(DesiredLevel*tblData[[#This Row],[Sample Standard Deviation]]) -> 0.93 | M43: =tblData[[#This Row],[Sample Mean]]+(DesiredLevel*tblData[[#This Row],[Sample Standard Deviation]]) -> 4.08
B44: 2014-01-13 | C44: 5 | D44: 0 | E44: 0 | F44: 4 | G44: 2 | H44: =IFERROR(AVERAGE(tblData[[#This Row],[Sample 1]:[Sample 5]]),"") -> 2.20 | I44: =AVERAGE(tblData[Mean]) -> 2.50 | J44: =IFERROR(STDEV(tblData[[#This Row],[Sample 1]:[Sample 5]]),"") -> 2.28 | K44: =AVERAGE(tblData[Standard Deviation]) -> 1.58 | L44: =tblData[[#This Row],[Sample Mean]]-(DesiredLevel*tblData[[#This Row],[Sample Standard Deviation]]) -> 0.93 | M44: =tblData[[#This Row],[Sample Mean]]+(DesiredLevel*tblData[[#This Row],[Sample Standard Deviation]]) -> 4.08
B45: 2014-01-14 | C45: 2 | D45: 3 | E45: 1 | F45: 2 | G45: 0 | H45: =IFERROR(AVERAGE(tblData[[#This Row],[Sample 1]:[Sample 5]]),"") -> 1.60 | I45: =AVERAGE(tblData[Mean]) -> 2.50 | J45: =IFERROR(STDEV(tblData[[#This Row],[Sample 1]:[Sample 5]]),"") -> 1.14 | K45: =AVERAGE(tblData[Standard Deviation]) -> 1.58 | L45: =tblData[[#This Row],[Sample Mean]]-(DesiredLevel*tblData[[#This Row],[Sample Standard Deviation]]) -> 0.93 | M45: =tblData[[#This Row],[Sample Mean]]+(DesiredLevel*tblData[[#This Row],[Sample Standard Deviation]]) -> 4.08
B46: 2014-01-17 | C46: 3 | D46: 0 | E46: 1 | F46: 2 | G46: 1 | H46: =IFERROR(AVERAGE(tblData[[#This Row],[Sample 1]:[Sample 5]]),"") -> 1.40 | I46: =AVERAGE(tblData[Mean]) -> 2.50 | J46: =IFERROR(STDEV(tblData[[#This Row],[Sample 1]:[Sample 5]]),"") -> 1.14 | K46: =AVERAGE(tblData[Standard Deviation]) -> 1.58 | L46: =tblData[[#This Row],[Sample Mean]]-(DesiredLevel*tblData[[#This Row],[Sample Standard Deviation]]) -> 0.93 | M46: =tblData[[#This Row],[Sample Mean]]+(DesiredLevel*tblData[[#This Row],[Sample Standard Deviation]]) -> 4.08
B47: 2014-01-18 | C47: 3 | D47: 1 | E47: 3 | F47: 0 | G47: 0 | H47: =IFERROR(AVERAGE(tblData[[#This Row],[Sample 1]:[Sample 5]]),"") -> 1.40 | I47: =AVERAGE(tblData[Mean]) -> 2.50 | J47: =IFERROR(STDEV(tblData[[#This Row],[Sample 1]:[Sample 5]]),"") -> 1.52 | K47: =AVERAGE(tblData[Standard Deviation]) -> 1.58 | L47: =tblData[[#This Row],[Sample Mean]]-(DesiredLevel*tblData[[#This Row],[Sample Standard Deviation]]) -> 0.93 | M47: =tblData[[#This Row],[Sample Mean]]+(DesiredLevel*tblData[[#This Row],[Sample Standard Deviation]]) -> 4.08
B48: 2014-01-19 | C48: 1 | D48: 5 | E48: 4 | F48: 1 | G48: 1 | H48: =IFERROR(AVERAGE(tblData[[#This Row],[Sample 1]:[Sample 5]]),"") -> 2.40 | I48: =AVERAGE(tblData[Mean]) -> 2.50 | J48: =IFERROR(STDEV(tblData[[#This Row],[Sample 1]:[Sample 5]]),"") -> 1.95 | K48: =AVERAGE(tblData[Standard Deviation]) -> 1.58 | L48: =tblData[[#This Row],[Sample Mean]]-(DesiredLevel*tblData[[#This Row],[Sample Standard Deviation]]) -> 0.93 | M48: =tblData[[#This Row],[Sample Mean]]+(DesiredLevel*tblData[[#This Row],[Sample Standard Deviation]]) -> 4.08
B49: 2014-01-20 | C49: 4 | D49: 0 | E49: 3 | F49: 2 | G49: 0 | H49: =IFERROR(AVERAGE(tblData[[#This Row],[Sample 1]:[Sample 5]]),"") -> 1.80 | I49: =AVERAGE(tblData[Mean]) -> 2.50 | J49: =IFERROR(STDEV(tblData[[#This Row],[Sample 1]:[Sample 5]]),"") -> 1.79 | K49: =AVERAGE(tblData[Standard Deviation]) -> 1.58 | L49: =tblData[[#This Row],[Sample Mean]]-(DesiredLevel*tblData[[#This Row],[Sample Standard Deviation]]) -> 0.93 | M49: =tblData[[#This Row],[Sample Mean]]+(DesiredLevel*tblData[[#This Row],[Sample Standard Deviation]]) -> 4.08
B50: 2014-01-21 | C50: 3 | D50: 4 | E50: 1 | F50: 2 | G50: 3 | H50: =IFERROR(AVERAGE(tblData[[#This Row],[Sample 1]:[Sample 5]]),"") -> 2.60 | I50: =AVERAGE(tblData[Mean]) -> 2.50 | J50: =IFERROR(STDEV(tblData[[#This Row],[Sample 1]:[Sample 5]]),"") -> 1.14 | K50: =AVERAGE(tblData[Standard Deviation]) -> 1.58 | L50: =tblData[[#This Row],[Sample Mean]]-(DesiredLevel*tblData[[#This Row],[Sample Standard Deviation]]) -> 0.93 | M50: =tblData[[#This Row],[Sample Mean]]+(DesiredLevel*tblData[[#This Row],[Sample Standard Deviation]]) -> 4.08
B51: 2014-01-24 | C51: 1 | D51: 4 | E51: 0 | F51: 5 | G51: 0 | H51: =IFERROR(AVERAGE(tblData[[#This Row],[Sample 1]:[Sample 5]]),"") -> 2.00 | I51: =AVERAGE(tblData[Mean]) -> 2.50 | J51: =IFERROR(STDEV(tblData[[#This Row],[Sample 1]:[Sample 5]]),"") -> 2.35 | K51: =AVERAGE(tblData[Standard Deviation]) -> 1.58 | L51: =tblData[[#This Row],[Sample Mean]]-(DesiredLevel*tblData[[#This Row],[Sample Standard Deviation]]) -> 0.93 | M51: =tblData[[#This Row],[Sample Mean]]+(DesiredLevel*tblData[[#This Row],[Sample Standard Deviation]]) -> 4.08
B52: 2014-01-25 | C52: 4 | D52: 4 | E52: 0 | F52: 2 | G52: 2 | H52: =IFERROR(AVERAGE(tblData[[#This Row],[Sample 1]:[Sample 5]]),"") -> 2.40 | I52: =AVERAGE(tblData[Mean]) -> 2.50 | J52: =IFERROR(STDEV(tblData[[#This Row],[Sample 1]:[Sample 5]]),"") -> 1.67 | K52: =AVERAGE(tblData[Standard Deviation]) -> 1.58 | L52: =tblData[[#This Row],[Sample Mean]]-(DesiredLevel*tblData[[#This Row],[Sample Standard Deviation]]) -> 0.93 | M52: =tblData[[#This Row],[Sample Mean]]+(DesiredLevel*tblData[[#This Row],[Sample Standard Deviation]]) -> 4.08
B53: 2014-01-26 | C53: 0 | D53: 3 | E53: 4 | F53: 4 | G53: 1 | H53: =IFERROR(AVERAGE(tblData[[#This Row],[Sample 1]:[Sample 5]]),"") -> 2.40 | I53: =AVERAGE(tblData[Mean]) -> 2.50 | J53: =IFERROR(STDEV(tblData[[#This Row],[Sample 1]:[Sample 5]]),"") -> 1.82 | K53: =AVERAGE(tblData[Standard Deviation]) -> 1.58 | L53: =tblData[[#This Row],[Sample Mean]]-(DesiredLevel*tblData[[#This Row],[Sample Standard Deviation]]) -> 0.93 | M53: =tblData[[#This Row],[Sample Mean]]+(DesiredLevel*tblData[[#This Row],[Sample Standard Deviation]]) -> 4.08
B54: 2014-01-27 | C54: 4 | D54: 2 | E54: 0 | F54: 3 | G54: 2 | H54: =IFERROR(AVERAGE(tblData[[#This Row],[Sample 1]:[Sample 5]]),"") -> 2.20 | I54: =AVERAGE(tblData[Mean]) -> 2.50 | J54: =IFERROR(STDEV(tblData[[#This Row],[Sample 1]:[Sample 5]]),"") -> 1.48 | K54: =AVERAGE(tblData[Standard Deviation]) -> 1.58 | L54: =tblData[[#This Row],[Sample Mean]]-(DesiredLevel*tblData[[#This Row],[Sample Standard Deviation]]) -> 0.93 | M54: =tblData[[#This Row],[Sample Mean]]+(DesiredLevel*tblData[[#This Row],[Sample Standard Deviation]]) -> 4.08
B55: 2014-01-28 | C55: 5 | D55: 3 | E55: 0 | F55: 4 | G55: 2 | H55: =IFERROR(AVERAGE(tblData[[#This Row],[Sample 1]:[Sample 5]]),"") -> 2.80 | I55: =AVERAGE(tblData[Mean]) -> 2.50 | J55: =IFERROR(STDEV(tblData[[#This Row],[Sample 1]:[Sample 5]]),"") -> 1.92 | K55: =AVERAGE(tblData[Standard Deviation]) -> 1.58 | L55: =tblData[[#This Row],[Sample Mean]]-(DesiredLevel*tblData[[#This Row],[Sample Standard Deviation]]) -> 0.93 | M55: =tblData[[#This Row],[Sample Mean]]+(DesiredLevel*tblData[[#This Row],[Sample Standard Deviation]]) -> 4.08
B56: 2014-01-31 | C56: 2 | D56: 3 | E56: 1 | F56: 2 | G56: 4 | H56: =IFERROR(AVERAGE(tblData[[#This Row],[Sample 1]:[Sample 5]]),"") -> 2.40 | I56: =AVERAGE(tblData[Mean]) -> 2.50 | J56: =IFERROR(STDEV(tblData[[#This Row],[Sample 1]:[Sample 5]]),"") -> 1.14 | K56: =AVERAGE(tblData[Standard Deviation]) -> 1.58 | L56: =tblData[[#This Row],[Sample Mean]]-(DesiredLevel*tblData[[#This Row],[Sample Standard Deviation]]) -> 0.93 | M56: =tblData[[#This Row],[Sample Mean]]+(DesiredLevel*tblData[[#This Row],[Sample Standard Deviation]]) -> 4.08
